[Event "DLM Youth 2024"]
[Site "Tuebingen"]
[Date "2024.10.05"]
[Round "5"]
[White "Stiehler, Mara"]
[Black "Wolf, Helena"]
[Result "0-1"]
[ECO "C00"]
[WhiteElo "1601"]
[BlackElo "1545"]
[Annotator "NA RC"]
[PlyCount "90"]
[EventDate "2024.10.03"]
[EventType "team-swiss"]
[EventRounds "7"]
[EventCountry "GER"]
[SourceTitle "playchess.com"]
[Source "ChessBase"]
[SourceQuality "1"]
[TimeControl "40/5400+30:1800+30"]

1. Nf3 {[%emt 0:00:01]} d5 {[%emt 0:00:17]} 2. g3 {[%emt 0:00:02]} Nf6 {[%emt 0:00:30]} 3. Bg2 {[%emt 0:00:15]} Nc6 {[%emt 0:00:30]} 4. O-O {[%emt 0:00:41]} e6 {[%emt 0:00:49]} 5. d3 {[%emt 0:00:04]} Bd6 {[%emt 0:01:03]} 6. Nbd2 {[%emt 0:00:10]} O-O {[%emt 0:00:34]} 7. e4 {[%emt 0:00:05]} Re8 {[%emt 0:01:02]} 8. Re1 {[%emt 0:00:18]} Bc5 {[%emt 0:03:01]} 9. Nf1 {[%emt 0:01:13]} h6 {[%emt 0:05:06]} 10. e5 {[%emt 0:00:47]} Nd7 {[%emt 0:02:11]} 11. d4 {[%emt 0:00:55]} Bb6 {[%emt 0:02:41]} 12. c3 {[%emt 0:00:13]} Ne7 {[%emt 0:01:31]} 13. h4 {[%emt 0:00:21]} c5 {[%emt 0:01:36]} 14. N1h2 {[%emt 0:00:23]} Nf5 {[%emt 0:02:18]} 15. h5 {[%emt 0:02:22]} f6 {[%emt 0:13:55]} 16. g4 {[%emt 0:01:04]} Ne7 {[%emt 0:00:53]} 17. Bf4 {[%emt 0:00:59]} cxd4 {[%emt 0:04:27]} 18. cxd4 {[%emt 0:00:09]} fxe5 {[%emt 0:01:11]} 19. Nxe5 {[%emt 0:03:06]} Nxe5 {[%emt 0:01:05]} 20. Bxe5 {[%emt 0:00:08]} Nc6 {[%emt 0:00:22]} 21. Nf3 {[%emt 0:00:12]} Rf8 {[%emt 0:05:41]} 22. Qd3 {[%emt 0:04:45]} Nxe5 {[%emt 0:03:41]} 23. Nxe5 {[%emt 0:00:41]} Qf6 {[%emt 0:01:07]} 24. Re2 {[%emt 0:00:16]} Bc7 {[%emt 0:02:33]} 25. Qc2 {[%emt 0:05:33]} Bxe5 {[%emt 0:04:22]} 26. Rxe5 {[%emt 0:00:12]} Qf4 {[%emt 0:01:53]} 27. Rd1 {[%emt 0:07:26]} Qxg4 {[%emt 0:03:04]} 28. Rd3 {[%emt 0:02:14]} Qh4 {[%emt 0:01:37]} 29. Qd2 {[%emt 0:05:32]} Bd7 {[%emt 0:05:04]} 30. Rg3 {[%emt 0:01:22]} Qf4 {[%emt 0:03:00]} 31. Ree3 {[%emt 0:09:53]} Kh8 {[%emt 0:05:09]} 32. Rgf3 {[%emt 0:08:10]} Qg5 {[%emt 0:00:50]} 33. Rh3 {[%emt 0:01:24]} Rf7 {[%emt 0:04:01]} 34. Qd1 {[%emt 0:02:37]} Raf8 {[%emt 0:01:45]} 35. Rhg3 {[%emt 0:00:59]} Qe7 {[%emt 0:01:33]} 36. Rgf3 {[%emt 0:01:20]} Rf4 {[%emt 0:04:46]} 37. Rxf4 {[%emt 0:12:06]} Rxf4 {[%emt 0:00:09]} 38. Qd2 {[%emt 0:04:53]} Qf6 {[%emt 0:01:21]} 39. Re5 {[%emt 0:02:35]} Qh4 {[%emt 0:03:17]} 40. Qc2 {[%emt 0:06:48]} Rxd4 {[%emt 0:02:06]} 41. Qe2 {[%emt 0:34:26]} Qg4 {[%emt 0:36:16]} 42. f3 {[%emt 0:01:20]} Qf4 {[%emt 0:01:12]} 43. Bh3 {[%emt 0:04:14]} Qg3+ {[%emt 0:00:43]} 44. Bg2 {[%emt 0:00:21]} a6 {[%emt 0:00:00]} 45. Kf1 {[%emt 0:00:00]} Bb5 {[%emt 0:00:00]} 0-1

[Event "DLM Youth 2024"]
[Site "Tuebingen"]
[Date "2024.10.05"]
[Round "5"]
[White "Krannich, Eva"]
[Black "Ratushna, Olha"]
[Result "1/2-1/2"]
[ECO "C55"]
[WhiteElo "1582"]
[BlackElo "1644"]
[Annotator "NA RC"]
[PlyCount "108"]
[EventDate "2024.10.03"]
[EventType "team-swiss"]
[EventRounds "7"]
[EventCountry "GER"]
[SourceTitle "playchess.com"]
[Source "ChessBase"]
[SourceQuality "1"]
[TimeControl "40/5400+30:1800+30"]

1. e4 {[%emt 0:00:01]} e5 {[%emt 0:00:05]} 2. Nf3 {[%emt 0:00:06]} Nc6 {[%emt 0:00:07]} 3. Bc4 {[%emt 0:00:07]} Be7 {[%emt 0:00:11]} 4. d3 {[%emt 0:00:11]} Nf6 {[%emt 0:00:10]} 5. Bb3 {[%emt 0:00:14]} O-O {[%emt 0:00:18]} 6. c3 {[%emt 0:00:11]} d6 {[%emt 0:00:20]} 7. Nbd2 {[%emt 0:00:23]} h6 {[%emt 0:01:10]} 8. Nf1 {[%emt 0:00:50]} Be6 {[%emt 0:01:41]} 9. Bc2 {[%emt 0:00:18]} Qd7 {[%emt 0:01:15]} 10. Ng3 {[%emt 0:00:57]} a6 {[%emt 0:08:50]} 11. Qe2 {[%emt 0:03:40]} Kh8 {[%emt 0:02:43]} 12. h3 {[%emt 0:02:31]} Rae8 {[%emt 0:00:52]} 13. Nh4 {[%emt 0:02:04]} Ng8 {[%emt 0:03:02]} 14. Nhf5 {[%emt 0:01:56]} Bf6 {[%emt 0:01:12]} 15. Qf3 {[%emt 0:09:07]} Nce7 {[%emt 0:04:22]} 16. O-O {[%emt 0:06:11]} c5 {[%emt 0:04:19]} 17. Kh2 {[%emt 0:09:16]} d5 {[%emt 0:01:45]} 18. Rd1 {[%emt 0:06:50]} d4 {[%emt 0:00:21]} 19. c4 {[%emt 0:00:13]} Qc8 {[%emt 0:01:34]} 20. Nd6 {[%emt 0:00:31]} Qd7 {[%emt 0:00:46]} 21. Nxe8 {[%emt 0:00:14]} Rxe8 {[%emt 0:00:15]} 22. a4 {[%emt 0:00:41]} a5 {[%emt 0:00:19]} 23. b3 {[%emt 0:00:22]} b6 {[%emt 0:00:08]} 24. Bd2 {[%emt 0:01:07]} Nc6 {[%emt 0:03:19]} 25. Rf1 {[%emt 0:02:41]} Bd8 {[%emt 0:02:10]} 26. Qe2 {[%emt 0:01:40]} g5 {[%emt 0:00:30]} 27. Nh5 {[%emt 0:02:39]} Kh7 {[%emt 0:01:29]} 28. Qe1 {[%emt 0:02:31]} f6 {[%emt 0:05:11]} 29. Bd1 {[%emt 0:01:01]} Nce7 {[%emt 0:02:14]} 30. Ng3 {[%emt 0:01:31]} Ng6 {[%emt 0:01:22]} 31. Bh5 {[%emt 0:00:27]} Rf8 {[%emt 0:00:10]} 32. Bxg6+ {[%emt 0:00:29]} Kxg6 {[%emt 0:00:06]} 33. Qe2 {[%emt 0:00:41]} Kh7 {[%emt 0:00:18]} 34. Qf3 {[%emt 0:01:24]} g4 {[%emt 0:06:59]} 35. Qe2 {[%emt 0:03:00]} gxh3 {[%emt 0:01:15]} 36. gxh3 {[%emt 0:00:07]} Bxh3 {[%emt 0:00:31]} 37. Rg1 {[%emt 0:00:22]} Qg4 {[%emt 0:07:14]} 38. Qxg4 {[%emt 0:00:52]} Bxg4 {[%emt 0:00:07]} 39. Rae1 {[%emt 0:00:57]} Be6 {[%emt 0:02:15]} 40. Kg2 {[%emt 0:05:46]} Rf7 {[%emt 0:03:53]} 41. Rh1 {[%emt 0:30:43]} Rg7 {[%emt 0:30:59]} 42. Kf1 {[%emt 0:00:57]} Bg4 {[%emt 0:01:30]} 43. Nf5 {[%emt 0:02:03]} Rg6 {[%emt 0:02:28]} 44. f4 {[%emt 0:01:35]} Bc7 {[%emt 0:05:58]} 45. Nh4 {[%emt 0:00:54]} Rg7 {[%emt 0:01:49]} 46. f5 {[%emt 0:00:17]} Ne7 {[%emt 0:02:27]} 47. Ng6 {[%emt 0:01:18]} Nxg6 {[%emt 0:04:21]} 48. Rxh6+ {[%emt 0:00:12]} Kg8 {[%emt 0:00:08]} 49. Rxg6 {[%emt 0:00:45]} Rxg6 {[%emt 0:00:22]} 50. fxg6 {[%emt 0:00:06]} Kg7 {[%emt 0:00:23]} 51. Kf2 {[%emt 0:00:47]} Kxg6 {[%emt 0:03:47]} 52. Rh1 {[%emt 0:02:38]} Bh5 {[%emt 0:03:00]} 53. Rg1+ {[%emt 0:01:13]} Kh7 {[%emt 0:01:45]} 54. Ke1 {[%emt 0:00:15]} Bd8 {[%emt 0:01:43]} 1/2-1/2

[Event "DLM Youth 2024"]
[Site "Tuebingen"]
[Date "2024.10.05"]
[Round "5"]
[White "Lu, Sheng"]
[Black "Didas, Emma"]
[Result "1-0"]
[ECO "B09"]
[WhiteElo "1559"]
[BlackElo "1078"]
[Annotator "NA RC"]
[PlyCount "75"]
[EventDate "2024.10.03"]
[EventType "team-swiss"]
[EventRounds "7"]
[EventCountry "GER"]
[SourceTitle "playchess.com"]
[Source "ChessBase"]
[SourceQuality "1"]
[TimeControl "40/5400+30:1800+30"]

1. e4 {[%emt 0:00:04]} d6 {[%emt 0:00:06]} 2. d4 {[%emt 0:00:06]} Nf6 {[%emt 0:00:03]} 3. Nc3 {[%emt 0:00:09]} g6 {[%emt 0:00:03]} 4. f4 {[%emt 0:00:11]} c6 {[%emt 0:00:22]} 5. Nf3 {[%emt 0:00:39]} Bg7 {[%emt 0:00:06]} 6. Bd3 {[%emt 0:01:52]} b5 {[%emt 0:00:09]} 7. a3 {[%emt 0:02:11]} Bd7 {[%emt 0:01:20]} 8. b4 {[%emt 0:02:08]} Na6 {[%emt 0:03:56]} 9. h3 {[%emt 0:03:47]} Qb6 {[%emt 0:03:07]} 10. Rb1 {[%emt 0:05:33]} Nc7 {[%emt 0:03:17]} 11. Be3 {[%emt 0:03:11]} Ng8 {[%emt 0:02:56]} 12. Qd2 {[%emt 0:04:44]} Ne6 {[%emt 0:03:37]} 13. Be2 {[%emt 0:06:01]} a6 {[%emt 0:02:51]} 14. d5 {[%emt 0:02:12]} Qc7 {[%emt 0:04:22]} 15. dxe6 {[%emt 0:02:02]} Bxe6 {[%emt 0:00:20]} 16. Bd4 {[%emt 0:03:21]} f6 {[%emt 0:01:44]} 17. O-O {[%emt 0:03:43]} Rd8 {[%emt 0:00:49]} 18. Rfd1 {[%emt 0:02:10]} c5 {[%emt 0:01:49]} 19. Be3 {[%emt 0:03:00]} cxb4 {[%emt 0:01:19]} 20. axb4 {[%emt 0:00:31]} f5 {[%emt 0:00:28]} 21. Bd4 {[%emt 0:00:55]} Nf6 {[%emt 0:01:16]} 22. exf5 {[%emt 0:03:15]} Bxf5 {[%emt 0:00:50]} 23. Bd3 {[%emt 0:02:50]} Bxd3 {[%emt 0:01:09]} 24. cxd3 {[%emt 0:01:12]} O-O {[%emt 0:04:02]} 25. Rdc1 {[%emt 0:01:25]} Qd7 {[%emt 0:01:21]} 26. Qa2+ {[%emt 0:01:01]} Kh8 {[%emt 0:00:20]} 27. Qxa6 {[%emt 0:00:20]} Rb8 {[%emt 0:01:07]} 28. Ra1 {[%emt 0:02:12]} Rb7 {[%emt 0:02:29]} 29. Ne2 {[%emt 0:04:40]} Nd5 {[%emt 0:01:47]} 30. Bxg7+ {[%emt 0:02:10]} Kxg7 {[%emt 0:00:16]} 31. Rab1 {[%emt 0:02:18]} Nxf4 {[%emt 0:01:24]} 32. Nxf4 {[%emt 0:00:08]} Rxf4 {[%emt 0:00:28]} 33. Qc6 {[%emt 0:00:36]} Qxc6 {[%emt 0:00:57]} 34. Rxc6 {[%emt 0:00:03]} h6 {[%emt 0:03:35]} 35. Kf2 {[%emt 0:01:10]} Kf7 {[%emt 0:01:03]} 36. Ke3 {[%emt 0:00:39]} Rf5 {[%emt 0:00:32]} 37. Ke4 {[%emt 0:01:05]} Kf6 {[%emt 0:01:40]} 38. g4 {[%emt 0:02:02]} 1-0

[Event "DLM Youth 2024"]
[Site "Tuebingen"]
[Date "2024.10.05"]
[Round "5"]
[White "Albrecht, Sidney Jenna"]
[Black "Mersmann, Jasmin"]
[Result "1-0"]
[ECO "A17"]
[WhiteElo "1544"]
[BlackElo "1607"]
[Annotator "NA RC"]
[PlyCount "121"]
[EventDate "2024.10.03"]
[EventType "team-swiss"]
[EventRounds "7"]
[EventCountry "GER"]
[SourceTitle "playchess.com"]
[Source "ChessBase"]
[SourceQuality "1"]
[TimeControl "40/5400+30:1800+30"]

1. c4 {[%emt 0:00:03]} e6 {[%emt 0:00:10]} 2. g3 {[%emt 0:00:11]} Nf6 {[%emt 0:00:14]} 3. Nc3 {[%emt 0:01:22]} d5 {[%emt 0:00:37]} 4. Bg2 {[%emt 0:01:24]} dxc4 {[%emt 0:00:34]} 5. Qa4+ {[%emt 0:00:28]} Bd7 {[%emt 0:02:29]} 6. Qxc4 {[%emt 0:00:23]} Nc6 {[%emt 0:00:31]} 7. Nf3 {[%emt 0:05:22]} Be7 {[%emt 0:01:34]} 8. O-O {[%emt 0:02:12]} O-O {[%emt 0:00:29]} 9. d4 {[%emt 0:02:56]} Ne8 {[%emt 0:02:01]} 10. e4 {[%emt 0:10:43]} Nd6 {[%emt 0:00:47]} 11. Qe2 {[%emt 0:03:32]} f6 {[%emt 0:03:10]} 12. e5 {[%emt 0:06:18]} fxe5 {[%emt 0:00:38]} 13. dxe5 {[%emt 0:00:33]} Nf7 {[%emt 0:02:22]} 14. Rd1 {[%emt 0:02:45]} Qc8 {[%emt 0:03:06]} 15. b3 {[%emt 0:04:18]} Bc5 {[%emt 0:01:56]} 16. Ne4 {[%emt 0:03:51]} Bb6 {[%emt 0:03:04]} 17. Bb2 {[%emt 0:04:10]} Ne7 {[%emt 0:01:48]} 18. Rac1 {[%emt 0:03:10]} a6 {[%emt 0:01:26]} 19. Qd2 {[%emt 0:10:34]} Bc6 {[%emt 0:00:44]} 20. Nc5 {[%emt 0:05:36]} Rd8 {[%emt 0:03:08]} 21. Qc2 {[%emt 0:01:46]} Nd5 {[%emt 0:02:43]} 22. a3 {[%emt 0:04:50]} Rf8 {[%emt 0:08:27]} 23. Rd2 {[%emt 0:02:31]} Ba5 {[%emt 0:01:32]} 24. b4 {[%emt 0:02:11]} Bb6 {[%emt 0:00:43]} 25. Re1 {[%emt 0:02:20]} a5 {[%emt 0:01:43]} 26. Nd3 {[%emt 0:02:39]} axb4 {[%emt 0:01:18]} 27. axb4 {[%emt 0:00:50]} Ba4 {[%emt 0:02:56]} 28. Qc1 {[%emt 0:00:58]} Bb5 {[%emt 0:01:12]} 29. Bc3 {[%emt 0:02:10]} Ra4 {[%emt 0:01:52]} 30. Qb2 {[%emt 0:01:52]} Qa8 {[%emt 0:05:29]} 31. Nc5 {[%emt 0:04:40]} Ra2 {[%emt 0:03:39]} 32. Qxa2 {[%emt 0:01:41]} Qxa2 {[%emt 0:02:49]} 33. Rxa2 {[%emt 0:00:25]} Nxc3 {[%emt 0:00:13]} 34. Rc2 {[%emt 0:00:45]} Nd5 {[%emt 0:01:05]} 35. Nxe6 {[%emt 0:01:12]} Re8 {[%emt 0:01:20]} 36. Ned4 {[%emt 0:01:02]} Bd3 {[%emt 0:16:20]} 37. Rb2 {[%emt 0:01:54]} Bg6 {[%emt 0:08:16]} 38. Nb5 {[%emt 0:02:13]} Nh6 {[%emt 0:06:28]} 39. Nh4 {[%emt 0:01:02]} Nxb4 {[%emt 0:02:11]} 40. Ree2 {[%emt 0:01:35]} Bd3 {[%emt 0:04:44]} 41. Red2 {[%emt 0:05:20]} Bxb5 {[%emt 0:02:23]} 42. Rxb4 {[%emt 0:01:29]} Ba5 {[%emt 0:00:27]} 43. Rxb5 {[%emt 0:00:43]} Bxd2 {[%emt 0:00:19]} 44. Bxb7 {[%emt 0:00:29]} Ng4 {[%emt 0:01:38]} 45. Nf3 {[%emt 0:01:37]} Bc3 {[%emt 0:01:00]} 46. Bd5+ {[%emt 0:00:44]} Kf8 {[%emt 0:01:43]} 47. e6 {[%emt 0:00:37]} c6 {[%emt 0:01:50]} 48. Bxc6 {[%emt 0:00:38]} Rxe6 {[%emt 0:01:03]} 49. Bd7 {[%emt 0:02:12]} Re4 {[%emt 0:01:24]} 50. Bf5 {[%emt 0:02:14]} Ra4 {[%emt 0:00:50]} 51. Bxh7 {[%emt 0:02:18]} Ra2 {[%emt 0:02:28]} 52. Rb8+ {[%emt 0:02:50]} Ke7 {[%emt 0:00:56]} 53. Rc8 {[%emt 0:00:33]} Bb4 {[%emt 0:04:44]} 54. Rc4 {[%emt 0:01:26]} Nf6 {[%emt 0:01:55]} 55. Rxb4 {[%emt 0:00:40]} Nxh7 {[%emt 0:00:07]} 56. h4 {[%emt 0:01:34]} Nf6 {[%emt 0:00:54]} 57. g4 {[%emt 0:00:38]} Ra3 {[%emt 0:00:31]} 58. Ng5 {[%emt 0:00:47]} Ra8 {[%emt 0:01:31]} 59. Rb7+ {[%emt 0:00:45]} Kf8 {[%emt 0:00:35]} 60. Ne6+ {[%emt 0:00:18]} Ke8 {[%emt 0:01:37]} 61. Nc7+ {[%emt 0:00:15]} 1-0